[Event "*** Titled Tuesday Blitz"]
[Site "Chess.com"]
[Date "2021.02.02"]
[Round "1"]
[White "MagzyPotato"]
[Black "wnstop"]
[Result "0-1"]
[WhiteElo "2390"]
[BlackElo "2742"]
[TimeControl "180+1"]
[EndTime "10:07:39 PST"]
[Termination "wnstop won by resignation"]

1. d4 {[%clk 0:03:00.6]} 1... Nf6 {[%clk 0:02:57.8]} 2. c4 {[%clk 0:03:00.7]}
2... g6 {[%clk 0:02:56.6]} 3. Nc3 {[%clk 0:03:00.6]} 3... Bg7 {[%clk 0:02:56.8]}
4. e4 {[%clk 0:03:01]} 4... d6 {[%clk 0:02:57.2]} 5. Nf3 {[%clk 0:03:01.5]} 5...
O-O {[%clk 0:02:57.6]} 6. Be2 {[%clk 0:03:02]} 6... Na6 {[%clk 0:02:56.5]} 7.
O-O {[%clk 0:03:01.9]} 7... e5 {[%clk 0:02:56.9]} 8. Re1 {[%clk 0:03:01.8]} 8...
Bg4 {[%clk 0:02:52.6]} 9. d5 {[%clk 0:03:01.2]} 9... Nc5 {[%clk 0:02:47.8]} 10.
Qc2 {[%clk 0:03:00.1]} 10... a5 {[%clk 0:02:46.6]} 11. Be3 {[%clk 0:03:00.1]}
11... b6 {[%clk 0:02:44.4]} 12. h3 {[%clk 0:02:56.1]} 12... Bd7 {[%clk
0:02:43.2]} 13. Qd2 {[%clk 0:02:51.8]} 13... Nfxe4 {[%clk 0:02:42]} 14. Nxe4
{[%clk 0:02:52]} 14... Nxe4 {[%clk 0:02:42.9]} 15. Qc2 {[%clk 0:02:52.5]} 15...
f5 {[%clk 0:02:41.2]} 16. Rad1 {[%clk 0:02:37.5]} 16... Nc5 {[%clk 0:02:31]} 17.
Bg5 {[%clk 0:02:33.9]} 17... Qe8 {[%clk 0:02:25.7]} 18. Bf1 {[%clk 0:02:30.5]}
18... Qf7 {[%clk 0:02:24.5]} 19. b3 {[%clk 0:02:24.5]} 19... h6 {[%clk 0:02:22]}
20. Bc1 {[%clk 0:02:23.2]} 20... g5 {[%clk 0:02:21.3]} 21. a3 {[%clk 0:02:19.2]}
21... a4 {[%clk 0:02:20.9]} 22. b4 {[%clk 0:02:19.4]} 22... Nb3 {[%clk
0:02:21.1]} 23. Bb2 {[%clk 0:02:19.9]} 23... Rae8 {[%clk 0:02:11.6]} 24. Nd2
{[%clk 0:02:13.6]} 24... Nxd2 {[%clk 0:02:05.2]} 25. Rxd2 {[%clk 0:02:13.1]}
25... e4 {[%clk 0:02:03.6]} 26. c5 {[%clk 0:02:12.9]} 26... Bxb2 {[%clk
0:01:54.6]} 27. Qxb2 {[%clk 0:02:12.5]} 27... f4 {[%clk 0:01:54.8]} 28. cxd6
{[%clk 0:02:10]} 28... cxd6 {[%clk 0:01:54.6]} 29. Qd4 {[%clk 0:02:06.1]} 29...
e3 {[%clk 0:01:33.7]} 30. Rde2 {[%clk 0:02:04]} 30... f3 {[%clk 0:01:24.2]} 31.
gxf3 {[%clk 0:01:51.3]} 31... Qxf3 {[%clk 0:01:09.6]} 32. fxe3 {[%clk
0:01:46.1]} 32... Qg3+ {[%clk 0:01:07.4]} 33. Bg2 {[%clk 0:01:41.4]} 33... Bxh3
{[%clk 0:01:07.9]} 34. Rc1 {[%clk 0:01:26.4]} 34... Rf4 {[%clk 0:00:38.6]} 35.
Qb2 {[%clk 0:01:11.3]} 35... Bxg2 {[%clk 0:00:35.8]} 36. Rxg2 {[%clk 0:01:11]}
36... Qxe3+ {[%clk 0:00:36]} 37. Kh1 {[%clk 0:01:09.5]} 37... Rh4+ {[%clk
0:00:35.7]} 38. Rh2 {[%clk 0:01:09.8]} 38... Rxh2+ {[%clk 0:00:32.8]} 39. Kxh2
{[%clk 0:01:09.4]} 39... Qf4+ {[%clk 0:00:33.1]} 40. Kg1 {[%clk 0:01:09.5]}
40... Qg4+ {[%clk 0:00:33.4]} 41. Qg2 {[%clk 0:01:09.1]} 41... Qxg2+ {[%clk
0:00:33.1]} 42. Kxg2 {[%clk 0:01:09.6]} 42... Re5 {[%clk 0:00:32.6]} 43. Rc6
{[%clk 0:01:09.6]} 43... Rxd5 {[%clk 0:00:32.7]} 44. Rxb6 {[%clk 0:01:09.8]}
44... Kg7 {[%clk 0:00:33]} 45. Ra6 {[%clk 0:01:10.1]} 45... Kg6 {[%clk
0:00:32.7]} 46. Rxa4 {[%clk 0:01:10.5]} 46... h5 {[%clk 0:00:33.1]} 47. Ra8
{[%clk 0:01:10.8]} 47... h4 {[%clk 0:00:33.3]} 48. a4 {[%clk 0:01:10.6]} 48...
Kf5 {[%clk 0:00:32.9]} 49. a5 {[%clk 0:01:10.7]} 49... Rd2+ {[%clk 0:00:32.7]}
50. Kf1 {[%clk 0:01:09.1]} 50... h3 {[%clk 0:00:32.2]} 51. Rh8 {[%clk
0:01:07.9]} 51... g4 {[%clk 0:00:31.8]} 52. a6 {[%clk 0:01:07.9]} 52... Ra2
{[%clk 0:00:31.7]} 53. b5 {[%clk 0:01:08.3]} 53... Kf4 {[%clk 0:00:31.8]} 54. b6
{[%clk 0:01:05.6]} 54... Rxa6 {[%clk 0:00:17.7]} 55. b7 {[%clk 0:01:05.7]} 55...
Ra1+ {[%clk 0:00:15.5]} 56. Ke2 {[%clk 0:01:05.5]} 56... Rb1 {[%clk 0:00:14.3]}
57. b8=Q {[%clk 0:01:05.1]} 57... Rxb8 {[%clk 0:00:14.6]} 58. Rxb8 {[%clk
0:01:06]} 58... Kg3 {[%clk 0:00:15.1]} 59. Rh8 {[%clk 0:01:04.8]} 59... Kg2
{[%clk 0:00:14.5]} 60. Rd8 {[%clk 0:01:01.3]} 60... h2 {[%clk 0:00:13.4]} 61.
Rxd6 {[%clk 0:01:02.2]} 61... h1=Q {[%clk 0:00:13.3]} 62. Rd2 {[%clk 0:01:03.1]}
62... Qh6 {[%clk 0:00:11.5]} 63. Kd3+ {[%clk 0:01:02.7]} 63... Qxd2+ {[%clk
0:00:11.5]} 64. Kxd2 {[%clk 0:01:03.4]} 64... Kf2 {[%clk 0:00:12.1]} 65. Kd3
{[%clk 0:01:04.1]} 65... g3 {[%clk 0:00:12.7]} 66. Kd4 {[%clk 0:01:05]} 66... g2
{[%clk 0:00:13.6]} 67. Ke5 {[%clk 0:01:05.9]} 67... g1=Q {[%clk 0:00:14.5]} 68.
Ke4 {[%clk 0:01:06.8]} 68... Qe1+ {[%clk 0:00:15.4]} 69. Kd5 {[%clk 0:01:07.7]}
0-1

[Event "*** Titled Tuesday Blitz"]
[Site "Chess.com"]
[Date "2021.02.02"]
[Round "1"]
[White "Snegokhod"]
[Black "salomez"]
[Result "1-0"]
[WhiteElo "2533"]
[BlackElo "2213"]
[TimeControl "180+1"]
[EndTime "10:07:39 PST"]
[Termination "Snegokhod won on time"]

1. d4 {[%clk 0:03:00.9]} 1... Nf6 {[%clk 0:02:59.7]} 2. c4 {[%clk 0:02:59.5]}
2... g6 {[%clk 0:03:00.1]} 3. Nc3 {[%clk 0:02:58.7]} 3... d5 {[%clk 0:02:58.7]}
4. Nf3 {[%clk 0:02:53.2]} 4... Bg7 {[%clk 0:02:58.5]} 5. cxd5 {[%clk 0:02:52.4]}
5... Nxd5 {[%clk 0:02:57.4]} 6. e4 {[%clk 0:02:53]} 6... Nxc3 {[%clk 0:02:57]}
7. bxc3 {[%clk 0:02:53.3]} 7... c5 {[%clk 0:02:57.9]} 8. Rb1 {[%clk 0:02:52.9]}
8... O-O {[%clk 0:02:57]} 9. Be2 {[%clk 0:02:50.7]} 9... b6 {[%clk 0:02:53.1]}
10. O-O {[%clk 0:02:48.1]} 10... Bb7 {[%clk 0:02:52.7]} 11. d5 {[%clk
0:02:37.5]} 11... Bxc3 {[%clk 0:02:48.4]} 12. Bh6 {[%clk 0:02:35.9]} 12... Bg7
{[%clk 0:02:48]} 13. Qd2 {[%clk 0:02:33.4]} 13... e6 {[%clk 0:02:31.9]} 14. Rfd1
{[%clk 0:02:31.6]} 14... exd5 {[%clk 0:02:31.4]} 15. exd5 {[%clk 0:02:29.5]}
15... Nd7 {[%clk 0:02:31.2]} 16. d6 {[%clk 0:02:28.5]} 16... Bxh6 {[%clk
0:02:13.6]} 17. Qxh6 {[%clk 0:02:27.7]} 17... Qf6 {[%clk 0:02:14.5]} 18. Ng5
{[%clk 0:02:19]} 18... Qg7 {[%clk 0:02:14.1]} 19. Qh4 {[%clk 0:02:16.2]} 19...
Rfe8 {[%clk 0:01:40.1]} 20. Bb5 {[%clk 0:02:15.4]} 20... Rad8 {[%clk 0:01:28.9]}
21. a4 {[%clk 0:02:14.9]} 21... h6 {[%clk 0:01:22.8]} 22. Nxf7 {[%clk
0:02:04.5]} 22... Kxf7 {[%clk 0:01:10.6]} 23. Bc4+ {[%clk 0:01:59.9]} 23... Kf8
{[%clk 0:01:10.4]} 24. a5 {[%clk 0:01:55.8]} 24... g5 {[%clk 0:01:00.1]} 25. Qg3
{[%clk 0:01:51]} 25... Qf6 {[%clk 0:00:57.4]} 26. Ba2 {[%clk 0:01:41.3]} 26...
Kg7 {[%clk 0:00:46.3]} 27. h4 {[%clk 0:01:37.1]} 27... Re2 {[%clk 0:00:40]} 28.
Bc4 {[%clk 0:01:34.2]} 28... Re4 {[%clk 0:00:39.8]} 29. hxg5 {[%clk 0:01:31.6]}
29... Qxg5 {[%clk 0:00:35.9]} 30. Qc3+ {[%clk 0:01:31.5]} 30... Ne5 {[%clk
0:00:29.9]} 31. Bf1 {[%clk 0:01:27.3]} 31... Rg4 {[%clk 0:00:27.9]} 32. g3
{[%clk 0:01:18]} 32... Qf6 {[%clk 0:00:23.8]} 33. Rb3 {[%clk 0:00:51.1]} 33...
Nf3+ {[%clk 0:00:21.3]} 34. Kh1 {[%clk 0:00:51.5]} 34... Qxc3 {[%clk 0:00:19.5]}
35. Rxc3 {[%clk 0:00:51.3]} 35... Nd4+ {[%clk 0:00:18.3]} 36. Kh2 {[%clk
0:00:46.3]} 36... Rxd6 {[%clk 0:00:16.6]} 37. a6 {[%clk 0:00:44.6]} 37... Bd5
{[%clk 0:00:14.6]} 38. f4 {[%clk 0:00:41.2]} 38... Be6 {[%clk 0:00:07.9]} 39.
Re1 {[%clk 0:00:39.1]} 39... Bd5 {[%clk 0:00:06.6]} 40. Re7+ {[%clk 0:00:38.3]}
40... Kf6 {[%clk 0:00:06.3]} 41. Rxa7 {[%clk 0:00:38]} 41... Rg7 {[%clk
0:00:03.6]} 42. Rxg7 {[%clk 0:00:31.8]} 42... Kxg7 {[%clk 0:00:03.5]} 43. g4
{[%clk 0:00:30.4]} 43... Rd7 {[%clk 0:00:02.9]} 44. f5 {[%clk 0:00:29.1]} 44...
Ra7 {[%clk 0:00:02.8]} 45. Kg3 {[%clk 0:00:28.8]} 45... Nc6 {[%clk 0:00:02]} 46.
Rd3 {[%clk 0:00:27.2]} 46... Nb4 {[%clk 0:00:02.4]} 47. Rd2 {[%clk 0:00:26.1]}
47... Bc6 {[%clk 0:00:02]} 48. Rd6 {[%clk 0:00:24.2]} 1-0

[Event "*** Titled Tuesday Blitz"]
[Site "Chess.com"]
[Date "2021.02.02"]
[Round "1"]
[White "A-S-00"]
[Black "Kiborg95"]
[Result "0-1"]
[WhiteElo "2336"]
[BlackElo "2634"]
[TimeControl "180+1"]
[EndTime "10:07:40 PST"]
[Termination "Kiborg95 won by resignation"]

1. e4 {[%clk 0:02:59.6]} 1... d6 {[%clk 0:03:00.5]} 2. d4 {[%clk 0:02:59.3]}
2... Nf6 {[%clk 0:03:01.2]} 3. Nc3 {[%clk 0:02:59.9]} 3... e5 {[%clk 0:03:01.5]}
4. dxe5 {[%clk 0:02:57.6]} 4... dxe5 {[%clk 0:03:02.4]} 5. Qxd8+ {[%clk
0:02:58.1]} 5... Kxd8 {[%clk 0:03:03.3]} 6. Nf3 {[%clk 0:02:58.5]} 6... Bd6
{[%clk 0:03:03.1]} 7. Bg5 {[%clk 0:02:57.3]} 7... c6 {[%clk 0:02:55.8]} 8. O-O-O
{[%clk 0:02:56.2]} 8... Ke7 {[%clk 0:02:56.3]} 9. Bc4 {[%clk 0:02:47.9]} 9...
Bc7 {[%clk 0:02:56.1]} 10. Rhe1 {[%clk 0:02:33.6]} 10... Nd7 {[%clk 0:02:56.3]}
11. Be3 {[%clk 0:02:25.1]} 11... b5 {[%clk 0:02:53.7]} 12. Bb3 {[%clk
0:02:24.3]} 12... Bb6 {[%clk 0:02:42.5]} 13. Bxb6 {[%clk 0:02:12.9]} 13... axb6
{[%clk 0:02:43.4]} 14. a3 {[%clk 0:02:11.3]} 14... h6 {[%clk 0:02:40.6]} 15. Kb1
{[%clk 0:02:00.3]} 15... Re8 {[%clk 0:02:40.2]} 16. Ne2 {[%clk 0:01:47.2]} 16...
g6 {[%clk 0:02:36.9]} 17. Nd2 {[%clk 0:01:35.8]} 17... Nc5 {[%clk 0:02:36.7]}
18. f4 {[%clk 0:01:32.4]} 18... Ng4 {[%clk 0:02:22.3]} 19. fxe5 {[%clk
0:01:22.1]} 19... Nxe5 {[%clk 0:02:21]} 20. Nd4 {[%clk 0:01:22]} 20... Bg4
{[%clk 0:02:07.4]} 21. N2f3 {[%clk 0:01:19.1]} 21... Bxf3 {[%clk 0:01:03]} 22.
gxf3 {[%clk 0:01:18.5]} 22... Nxb3 {[%clk 0:00:56.6]} 23. cxb3 {[%clk
0:01:17.4]} 23... Rad8 {[%clk 0:00:37.7]} 24. Rf1 {[%clk 0:01:07.5]} 24... Rd6
{[%clk 0:00:32.9]} 25. f4 {[%clk 0:00:49.5]} 25... Red8 {[%clk 0:00:33.3]} 26.
Nf5+ {[%clk 0:00:27.4]} 26... gxf5 {[%clk 0:00:33.5]} 27. Rxd6 {[%clk
0:00:27.2]} 27... Kxd6 {[%clk 0:00:33.3]} 28. fxe5+ {[%clk 0:00:25.1]} 28...
Kxe5 {[%clk 0:00:33.7]} 29. Rxf5+ {[%clk 0:00:24.5]} 29... Kxe4 {[%clk 0:00:34]}
30. Rxf7 {[%clk 0:00:24.6]} 30... Rd1+ {[%clk 0:00:25.8]} 31. Ka2 {[%clk
0:00:22.6]} 31... Rd6 {[%clk 0:00:25.6]} 32. a4 {[%clk 0:00:19]} 32... b4 {[%clk
0:00:21.7]} 33. Rb7 {[%clk 0:00:18.1]} 33... c5 {[%clk 0:00:21.6]} 34. Re7+
{[%clk 0:00:17.3]} 34... Kd5 {[%clk 0:00:21.6]} 35. Rh7 {[%clk 0:00:16.6]} 35...
Rg6 {[%clk 0:00:21]} 36. h4 {[%clk 0:00:15.8]} 36... Ke5 {[%clk 0:00:20.7]} 37.
Rh8 {[%clk 0:00:15.9]} 37... Kf5 {[%clk 0:00:20.9]} 38. Rc8 {[%clk 0:00:14.1]}
38... Kg4 {[%clk 0:00:19.3]} 39. a5 {[%clk 0:00:14.6]} 39... bxa5 {[%clk
0:00:19.8]} 40. Rxc5 {[%clk 0:00:14.7]} 40... Kxh4 {[%clk 0:00:20.3]} 41. Rxa5
{[%clk 0:00:15]} 41... h5 {[%clk 0:00:20.9]} 42. Rb5 {[%clk 0:00:14.7]} 42...
Rg4 {[%clk 0:00:21.3]} 43. Rb7 {[%clk 0:00:13.9]} 43... Kg3 {[%clk 0:00:20.6]}
44. Rh7 {[%clk 0:00:13.1]} 44... h4 {[%clk 0:00:20.9]} 45. Kb1 {[%clk
0:00:13.2]} 45... h3 {[%clk 0:00:21.5]} 46. Kc2 {[%clk 0:00:13.7]} 46... Kg2
{[%clk 0:00:21.9]} 47. Kd3 {[%clk 0:00:13]} 47... h2 {[%clk 0:00:22.5]} 48. Kc2
{[%clk 0:00:10.7]} 48... h1=Q {[%clk 0:00:22.7]} 49. Rxh1 {[%clk 0:00:09.5]}
49... Kxh1 {[%clk 0:00:23.6]} 0-1

[Event "*** Titled Tuesday Blitz"]
[Site "Chess.com"]
[Date "2021.02.02"]
[Round "1"]
[White "Pantata007"]
[Black "klimkoj"]
[Result "0-1"]
[WhiteElo "2251"]
[BlackElo "2563"]
[TimeControl "180+1"]
[EndTime "10:07:42 PST"]
[Termination "klimkoj won on time"]

1. d4 {[%clk 0:02:51.9]} 1... Nf6 {[%clk 0:02:59.5]} 2. c4 {[%clk 0:02:51.7]}
2... e6 {[%clk 0:02:56]} 3. Nc3 {[%clk 0:02:51.8]} 3... Bb4 {[%clk 0:02:54.3]}
4. e3 {[%clk 0:02:52]} 4... b6 {[%clk 0:02:51.6]} 5. Ne2 {[%clk 0:02:51.9]} 5...
Bb7 {[%clk 0:02:51.5]} 6. a3 {[%clk 0:02:52.2]} 6... Be7 {[%clk 0:02:34.2]} 7.
d5 {[%clk 0:02:51.7]} 7... O-O {[%clk 0:02:31.6]} 8. e4 {[%clk 0:02:51.6]} 8...
d6 {[%clk 0:02:30.6]} 9. Ng3 {[%clk 0:02:51.9]} 9... e5 {[%clk 0:02:30.5]} 10.
Be2 {[%clk 0:02:52.2]} 10... a5 {[%clk 0:02:30.3]} 11. O-O {[%clk 0:02:52.3]}
11... Na6 {[%clk 0:02:30.2]} 12. Be3 {[%clk 0:02:49.5]} 12... Nd7 {[%clk
0:02:28.5]} 13. Rb1 {[%clk 0:02:43.5]} 13... g6 {[%clk 0:02:12.8]} 14. b4 {[%clk
0:02:39.1]} 14... axb4 {[%clk 0:02:08.5]} 15. axb4 {[%clk 0:02:38.4]} 15... Bg5
{[%clk 0:02:08.6]} 16. Qd2 {[%clk 0:01:21.4]} 16... Bxe3 {[%clk 0:02:05.9]} 17.
Qxe3 {[%clk 0:01:16.6]} 17... Kg7 {[%clk 0:02:05.6]} 18. Bg4 {[%clk 0:01:00.9]}
18... Qe7 {[%clk 0:01:46]} 19. Nb5 {[%clk 0:00:35.5]} 19... Kh8 {[%clk
0:01:28.2]} 20. Rfc1 {[%clk 0:00:34]} 20... Nf6 {[%clk 0:01:27]} 21. Be2 {[%clk
0:00:28.1]} 21... Bc8 {[%clk 0:01:24.3]} 22. h3 {[%clk 0:00:19.2]} 22... Bd7
{[%clk 0:01:20.7]} 23. Qd2 {[%clk 0:00:10.1]} 23... Bxb5 {[%clk 0:00:50.3]} 24.
cxb5 {[%clk 0:00:09.4]} 24... Nb8 {[%clk 0:00:49.9]} 25. Rb3 {[%clk 0:00:04.2]}
25... Ne8 {[%clk 0:00:48.5]} 26. Rbc3 {[%clk 0:00:03.5]} 26... Nd7 {[%clk
0:00:47.8]} 27. Rxc7 {[%clk 0:00:01.4]} 27... Nxc7 {[%clk 0:00:46.2]} 28. Rxc7
{[%clk 0:00:02.3]} 28... Rfc8 {[%clk 0:00:40.6]} 29. Qc2 {[%clk 0:00:02.4]}
29... Qd8 {[%clk 0:00:38.1]} 30. Rxc8 {[%clk 0:00:01.7]} 30... Rxc8 {[%clk
0:00:37.4]} 31. Qd2 {[%clk 0:00:02.2]} 31... Qc7 {[%clk 0:00:35.9]} 32. Nf1
{[%clk 0:00:02.5]} 32... Kg7 {[%clk 0:00:33.9]} 33. Qe3 {[%clk 0:00:02.5]} 33...
h6 {[%clk 0:00:24]} 34. Qf3 {[%clk 0:00:02.5]} 34... Nf6 {[%clk 0:00:17.9]} 35.
Ne3 {[%clk 0:00:02.3]} 35... Qc3 {[%clk 0:00:15.2]} 36. Kh2 {[%clk 0:00:02.1]}
36... Qxb4 {[%clk 0:00:14.5]} 37. g4 {[%clk 0:00:02.3]} 37... Qxe4 {[%clk
0:00:13.5]} 38. Ng2 {[%clk 0:00:01.3]} 38... Qxf3 {[%clk 0:00:13.4]} 39. Bxf3
{[%clk 0:00:01.3]} 39... Rc5 {[%clk 0:00:13]} 40. Be2 {[%clk 0:00:02.2]} 40...
Nxd5 {[%clk 0:00:12.2]} 41. Ne3 {[%clk 0:00:03.1]} 41... Nf4 {[%clk 0:00:12.7]}
42. Kg3 {[%clk 0:00:02.2]} 42... Nxe2+ {[%clk 0:00:11.9]} 0-1

[Event "*** Titled Tuesday Blitz"]
[Site "Chess.com"]
[Date "2021.02.02"]
[Round "1"]
[White "TokChess"]
[Black "rasmussvane"]
[Result "1/2-1/2"]
[WhiteElo "2458"]
[BlackElo "2863"]
[TimeControl "180+1"]
[EndTime "10:07:48 PST"]
[Termination "Game drawn by repetition"]

1. Nf3 {[%clk 0:02:58.6]} 1... d5 {[%clk 0:03:00.1]} 2. g3 {[%clk 0:02:59.5]}
2... g6 {[%clk 0:02:59.6]} 3. Bg2 {[%clk 0:02:59.6]} 3... Bg7 {[%clk 0:03:00.1]}
4. d4 {[%clk 0:03:00.1]} 4... Nf6 {[%clk 0:03:00.3]} 5. O-O {[%clk 0:03:00.6]}
5... O-O {[%clk 0:03:00.3]} 6. Nbd2 {[%clk 0:03:01.5]} 6... a5 {[%clk
0:02:58.5]} 7. c4 {[%clk 0:02:53.2]} 7... a4 {[%clk 0:02:55.6]} 8. cxd5 {[%clk
0:02:22.5]} 8... Nxd5 {[%clk 0:02:56.5]} 9. Qc2 {[%clk 0:02:09.7]} 9... Nc6
{[%clk 0:02:46]} 10. a3 {[%clk 0:02:05.5]} 10... Nb6 {[%clk 0:02:20.6]} 11. e3
{[%clk 0:02:01.5]} 11... Bf5 {[%clk 0:02:20.4]} 12. Ne4 {[%clk 0:01:51.7]} 12...
e5 {[%clk 0:02:14.3]} 13. Nh4 {[%clk 0:01:51.4]} 13... Bxe4 {[%clk 0:02:11]} 14.
Bxe4 {[%clk 0:01:47.7]} 14... exd4 {[%clk 0:02:11.9]} 15. Bxc6 {[%clk
0:01:36.9]} 15... bxc6 {[%clk 0:02:12.8]} 16. Rd1 {[%clk 0:01:32.9]} 16... Qd5
{[%clk 0:02:05.5]} 17. exd4 {[%clk 0:01:28.7]} 17... Rfd8 {[%clk 0:01:49.1]} 18.
Ng2 {[%clk 0:01:28.8]} 18... Bxd4 {[%clk 0:01:43.8]} 19. Be3 {[%clk 0:01:27.2]}
19... c5 {[%clk 0:01:33]} 20. Bxd4 {[%clk 0:01:26.9]} 20... cxd4 {[%clk
0:01:33.9]} 21. Qxc7 {[%clk 0:01:26.4]} 21... Nc4 {[%clk 0:01:32.4]} 22. Nf4
{[%clk 0:01:25]} 22... Qb5 {[%clk 0:01:30.9]} 23. Rac1 {[%clk 0:01:12.2]} 23...
Rac8 {[%clk 0:01:06.7]} 24. Qe7 {[%clk 0:01:11.5]} 24... Nxb2 {[%clk 0:01:02.6]}
25. Rxc8 {[%clk 0:01:09.4]} 25... Rxc8 {[%clk 0:01:03.5]} 26. Rxd4 {[%clk
0:01:01.3]} 26... h5 {[%clk 0:00:21.4]} 27. Rd8+ {[%clk 0:00:56.6]} 27... Rxd8
{[%clk 0:00:21.8]} 28. Qxd8+ {[%clk 0:00:57.5]} 28... Kh7 {[%clk 0:00:22.4]} 29.
Qf6 {[%clk 0:00:55.1]} 29... Qb3 {[%clk 0:00:20.4]} 30. Nh3 {[%clk 0:00:47.4]}
30... Kg8 {[%clk 0:00:19.5]} 31. Ng5 {[%clk 0:00:45.2]} 31... Nd3 {[%clk
0:00:19.7]} 32. Qd8+ {[%clk 0:00:44.3]} 32... Kg7 {[%clk 0:00:19.8]} 33. Qd4+
{[%clk 0:00:42.6]} 33... f6 {[%clk 0:00:20]} 34. Qd7+ {[%clk 0:00:40.2]} 34...
Kh6 {[%clk 0:00:19.4]} 35. Nf7+ {[%clk 0:00:39.9]} 35... Kg7 {[%clk 0:00:19.8]}
36. Ne5+ {[%clk 0:00:40.1]} 36... Kh6 {[%clk 0:00:14.1]} 37. Nf7+ {[%clk
0:00:30.6]} 37... Kg7 {[%clk 0:00:13.9]} 38. Ne5+ {[%clk 0:00:25.6]} 38... Kh6
{[%clk 0:00:14.4]} 39. Nxd3 {[%clk 0:00:26.5]} 39... Qxa3 {[%clk 0:00:14.6]} 40.
Nf4 {[%clk 0:00:23.2]} 40... g5 {[%clk 0:00:07.3]} 41. Nd5 {[%clk 0:00:21.9]}
41... Qa1+ {[%clk 0:00:04.6]} 42. Kg2 {[%clk 0:00:20.8]} 42... Qd4 {[%clk
0:00:02.9]} 43. Qf5 {[%clk 0:00:17.8]} 43... a3 {[%clk 0:00:02.7]} 44. Ne7
{[%clk 0:00:15.5]} 44... Kg7 {[%clk 0:00:02.4]} 45. Qg6+ {[%clk 0:00:14.5]}
45... Kf8 {[%clk 0:00:02.8]} 46. Nf5 {[%clk 0:00:13.8]} 46... Qe4+ {[%clk
0:00:03.2]} 47. Kg1 {[%clk 0:00:12]} 47... Qb1+ {[%clk 0:00:03.4]} 48. Kg2
{[%clk 0:00:12.1]} 48... Qe4+ {[%clk 0:00:04.3]} 49. Kg1 {[%clk 0:00:12.3]}
49... Qb1+ {[%clk 0:00:04.5]} 50. Kg2 {[%clk 0:00:11.7]} 50... Qe4+ {[%clk
0:00:05.4]} 1/2-1/2

[Event "*** Titled Tuesday Blitz"]
[Site "Chess.com"]
[Date "2021.02.02"]
[Round "1"]
[White "dennisodessa"]
[Black "Zhigalko_Sergei"]
[Result "0-1"]
[WhiteElo "2466"]
[BlackElo "2915"]
[TimeControl "180+1"]
[EndTime "10:07:52 PST"]
[Termination "Zhigalko_Sergei won by checkmate"]

1. d4 {[%clk 0:03:00.8]} 1... Nf6 {[%clk 0:03:00.1]} 2. c4 {[%clk 0:03:01]} 2...
e6 {[%clk 0:02:59.7]} 3. Nc3 {[%clk 0:03:01.2]} 3... Bb4 {[%clk 0:02:59.2]} 4.
Qc2 {[%clk 0:03:01]} 4... O-O {[%clk 0:02:57.8]} 5. a3 {[%clk 0:03:00.7]} 5...
Bxc3+ {[%clk 0:02:57.6]} 6. Qxc3 {[%clk 0:03:01.6]} 6... d6 {[%clk 0:02:58.5]}
7. Bg5 {[%clk 0:02:58.9]} 7... Nbd7 {[%clk 0:02:58.1]} 8. Nf3 {[%clk 0:02:55.7]}
8... h6 {[%clk 0:02:56.1]} 9. Bh4 {[%clk 0:02:54.4]} 9... b6 {[%clk 0:02:54.9]}
10. e3 {[%clk 0:02:54.1]} 10... Bb7 {[%clk 0:02:54.4]} 11. Be2 {[%clk
0:02:54.4]} 11... g5 {[%clk 0:02:49.7]} 12. Bg3 {[%clk 0:02:54.5]} 12... Ne4
{[%clk 0:02:49.9]} 13. Qc2 {[%clk 0:02:53.7]} 13... f5 {[%clk 0:02:50.5]} 14.
O-O {[%clk 0:02:43.9]} 14... Qe7 {[%clk 0:02:40.8]} 15. Nd2 {[%clk 0:02:41.9]}
15... Rae8 {[%clk 0:02:16.4]} 16. Nxe4 {[%clk 0:02:28.8]} 16... Bxe4 {[%clk
0:02:16.4]} 17. Qd2 {[%clk 0:02:22]} 17... Qg7 {[%clk 0:02:06.4]} 18. f3 {[%clk
0:02:19.5]} 18... Bb7 {[%clk 0:02:06.2]} 19. b4 {[%clk 0:02:05]} 19... h5 {[%clk
0:02:03.8]} 20. Rad1 {[%clk 0:00:49.8]} 20... h4 {[%clk 0:02:01.8]} 21. Bf2
{[%clk 0:00:50.3]} 21... Nf6 {[%clk 0:01:56.2]} 22. c5 {[%clk 0:00:47.3]} 22...
Bd5 {[%clk 0:01:47]} 23. Qc2 {[%clk 0:00:42.7]} 23... h3 {[%clk 0:01:33.3]} 24.
g3 {[%clk 0:00:38.4]} 24... g4 {[%clk 0:01:32.7]} 25. f4 {[%clk 0:00:21.7]}
25... Qd7 {[%clk 0:01:08.2]} 26. Rfe1 {[%clk 0:00:19.9]} 26... Ne4 {[%clk
0:01:06.2]} 27. b5 {[%clk 0:00:19.8]} 27... c6 {[%clk 0:01:05.5]} 28. Rc1 {[%clk
0:00:17]} 28... bxc5 {[%clk 0:00:56.6]} 29. dxc5 {[%clk 0:00:16.6]} 29... dxc5
{[%clk 0:00:57.5]} 30. a4 {[%clk 0:00:14.8]} 30... Rc8 {[%clk 0:00:55.1]} 31.
Red1 {[%clk 0:00:15.1]} 31... Qb7 {[%clk 0:00:50.3]} 32. Be1 {[%clk 0:00:14.8]}
32... cxb5 {[%clk 0:00:42.6]} 33. axb5 {[%clk 0:00:15.7]} 33... c4 {[%clk
0:00:42.8]} 34. Bc3 {[%clk 0:00:15]} 34... Qxb5 {[%clk 0:00:34.6]} 35. Ra1
{[%clk 0:00:13.1]} 35... Qb3 {[%clk 0:00:33.6]} 36. Rdc1 {[%clk 0:00:11.5]}
36... Nxc3 {[%clk 0:00:17.5]} 37. Qxc3 {[%clk 0:00:11.6]} 37... Qxc3 {[%clk
0:00:18.2]} 38. Rxc3 {[%clk 0:00:12.5]} 38... Rc7 {[%clk 0:00:18.9]} 39. Ra4
{[%clk 0:00:12.1]} 39... Rb8 {[%clk 0:00:16.4]} 40. Bxc4 {[%clk 0:00:11]} 40...
Kf8 {[%clk 0:00:15.3]} 41. Kf2 {[%clk 0:00:06.1]} 41... Rb2+ {[%clk 0:00:10.1]}
42. Ke1 {[%clk 0:00:06.4]} 42... Rxh2 {[%clk 0:00:09.2]} 43. Bxd5 {[%clk
0:00:03.5]} 43... Rxc3 {[%clk 0:00:08.4]} 44. Bxe6 {[%clk 0:00:04.4]} 44... Rc1#
{[%clk 0:00:08.6]} 0-1